Workbook

Sheet PVsingleCF
A1: To Calculate Future Value | G1: Finmath.xls
A4: PV = | B4: 100
A5: 0 | B5: 1 | C5: 2 | D5: 3 | E5: 4 | F5: …N = | G5: 30
A8: i = | B8: 0.15 | F8: FV = | G8: =B4*(1+B8/C9)^(G5*C9) -> 6621.177196
B9: M = | C9: 1 | D9: <--Compounding Periods per Year
A12: To Calculate Present Value
A15: PV = | B15: =G19*(1/((1+B19/C20)^(G16*C20))) -> 6209.213231
A16: 0 | B16: 1 | C16: 2 | D16: 3 | E16: 4 | F16: …N = | G16: 5
A19: i = | B19: 0.1 | F19: FV = | G19: 10000
B20: M = | C20: 1 | D20: <--Compounding Periods per Year

Sheet ShortPV
A1: Uneven Cash Flows
B2: Interest Rate = | C2: 0.1
B3: End of Period | C3: Cash Flow | D3: Discount Factor | E3: PV Cash Flow
B4: 0 | C4: -2500 | D4: =(1+$C$2)^-B4 -> 1 | E4: =C4*D4 -> -2500
B5: =1+B4 -> 1 | C5: 600 | D5: 0.9090909091 | E5: 545.4545455
B6: 2 | C6: 600 | D6: 0.826446281 | E6: 495.8677686 | G6: Note: Be sure that the cash flow
B7: 3 | C7: 600 | D7: 0.7513148009 | E7: 450.7888805 | G7: column countains no "blank" cells -
B8: 4 | C8: 600 | D8: 0.6830134554 | E8: 409.8080732 | G8: use "0" where appropriate!
B9: 5 | C9: 600 | D9: 0.6209213231 | E9: 372.5527938
B10: 6 | C10: 600 | D10: 0.5644739301 | E10: 338.684358
B11: 7 | C11: 600 | D11: 0.5131581182 | E11: 307.8948709
B12: 8 | C12: 600 | D12: 0.4665073802 | E12: 279.9044281
B13: 9 | C13: 600 | D13: 0.4240976184 | E13: 254.458571
B14: 10 | C14: 600 | D14: 0.3855432894 | E14: 231.3259737
E15: =SUM(E4:E14) -> 1186.740263
C16: IRR(PVo…FVn) = | D16: =IRR(C4:C14,#REF!) -> 
C17: NPV(i,FV1…FVn) = | D17: =NPV(C2,C5:C14) -> 3686.740263 | E17: <-- Sum of discounted cash flows excluding period zero

Sheet ShortFV
A1: Future Value: Uneven Cash Flows
B2: Interest Rate = | C2: 0.1
B3: End of Period | C3: Cash Flow (Investment) | D3: Future Value of Investment | E3: Sum of Investment | F3: Sum of Interest
B4: 0 | C4: 0 | D4: =C4 -> 0 | E4: =SUM(C4:C$4) -> 0 | F4: =D4-E4 -> 0
B5: =1+B4 -> 1 | C5: 2000 | D5: =D4*(1+$C$2)+C5 -> 2000 | E5: =SUM(C$4:C5) -> 2000 | F5: =D5-E5 -> 0
B6: 2 | C6: =C5 -> 2000 | D6: =D5*(1+$C$2)+C6 -> 4200 | E6: =SUM(C$4:C6) -> 4000 | F6: 200
B7: 3 | C7: =C6 -> 2000 | D7: 6620 | E7: =SUM(C$4:C7) -> 6000 | F7: 620
B8: 4 | C8: 2000 | D8: 9282 | E8: =SUM(C$4:C8) -> 8000 | F8: 1282
B9: 5 | C9: 2000 | D9: 12210.2 | E9: =SUM(C$4:C9) -> 10000 | F9: 2210.2
B10: 6 | C10: 2000 | D10: 15431.22 | E10: =SUM(C$4:C10) -> 12000 | F10: 3431.22
B11: 7 | C11: 2000 | D11: 18974.342 | E11: =SUM(C$4:C11) -> 14000 | F11: 4974.342
B12: 8 | C12: 2000 | D12: 22871.7762 | E12: =SUM(C$4:C12) -> 16000 | F12: 6871.7762
B13: 9 | C13: 2000 | D13: 27158.95382 | E13: =SUM(C$4:C13) -> 18000 | F13: 9158.95382
B14: 10 | C14: 2000 | D14: 31874.8492 | E14: =SUM(C$4:C14) -> 20000 | F14: 11874.8492
B15: Sum of CFs | C15: =SUM(C4:C14) -> 20000 | D15: =D14 -> 31874.8492 | E15: Future Value
D16: =C15 -> 20000 | E16: Total Investment
D17: =D15-D16 -> 11874.8492 | E17: Total Interest

Sheet Stock
A1: Stock Valuation | E1: Note: Enter dividends and growth rates until constant
B2: Discount Rate = | C2: 0.15 | E2: growth is reached.
B3: End of Period | C3: Cash Dividend | D3: Next Dividend Growth Rate | E3: Terminal Price = Perpetuity Value of Dividends | F3: Total Cash Flow | G3: Discount Factor | H3: PV of CFs
B4: 0 | C4: 1 | D4: 0.1 | E4: =IF(C5<=0,C4*(1+D4)/($C$2-D4),0) -> 0 | F4: =E4 -> 0 | G4: =(1+$C$2)^-B4 -> 1 | H4: =F4*G4 -> 0
B5: =1+B4 -> 1 | C5: =C4*(1+D4) -> 1.1 | D5: =D4 -> 0.1 | E5: 0 | F5: =C5+E5 -> 1.1 | G5: 0.8695652174 | H5: 0.9565217391
B6: 2 | C6: 1.21 | D6: =D5 -> 0.1 | E6: 0 | F6: 1.21 | G6: 0.7561436673 | H6: 0.9149338374
B7: 3 | C7: 1.331 | D7: 0.08 | E7: 0 | F7: 1.331 | G7: 0.6575162324 | H7: 0.8751541054
B8: 4 | C8: 1.43748 | D8: =D7 -> 0.08 | E8: 0 | F8: 1.43748 | G8: 0.5717532456 | H8: 0.8218838555
B9: 5 | C9: 1.5524784 | D9: 0.05 | E9: 0 | F9: 1.5524784 | G9: 0.4971767353 | H9: 0.7718561425
B10: 6 | C10: 1.63010232 | D10: =D9 -> 0.05 | E10: 0 | F10: 1.63010232 | G10: 0.4323275959 | H10: 0.7047382171
B11: 7 | C11: 1.711607436 | D11: =D10 -> 0.05 | E11: 17.97187808 | F11: 19.68348551 | G11: 0.3759370399 | H11: 7.39975128
B12: 8 | E12: 0 | F12: 0 | G12: 0.3269017738 | H12: 0
B13: 9 | E13: 0 | F13: 0 | G13: 0.284262412 | H13: 0
B14: 10 | E14: 0 | F14: 0 | G14: 0.2471847061 | H14: 0
G16: Stock Value (t=0) = | H16: =SUM(H4:H14) -> 12.44483918

Sheet Bond
A1: BOND VALUE & Yield to Maturity | G1: Data Table: PV of Bonds vs Required Rate
C2: Bond 1 | D2: Bond 2 | G2: Required Rate | H2: Value Bond 1 | I2: Value Bond 2
B3: Coupon Rate | C3: 0.05625 | D3: 0.06125 | H3: =C40 -> 66723.40216 | I3: =D40 -> 70526.44191
B4: Par Value | C4: 100000 | D4: 100000 | G4: =0 -> 0 | H4: 184375 | I4: 70526.44191
B5: Maturity (Years) | C5: 15 | D5: 15 | G5: =G4+0.01 -> 0.01 | H5: 164125.8679 | I5: 70526.44191
B6: Required Rate | C6: 0.1 | D6: 0.1 | G6: 0.02 | H6: 146578.5802 | I6: 70526.44191
C7: Cash Flow | D7: Cash Flow | G7: 0.03 | H7: 131337.0796 | I7: 70526.44191
B8: t | C8: Bond 1 | D8: Bond 2 | G8: 0.04 | H8: 118067.3796 | I8: 70526.44191
B9: 0 | C9: =-C41 -> -96125 | D9: =-D41 -> -97725 | G9: 0.05 | H9: 106487.2863 | I9: 70526.44191
B10: =1+B9 -> 1 | C10: =IF($B10<=C$5,IF($B10=C$5,C$3*C$4+C$4,C$3*C$4),0) -> 5625 | D10: =IF($B10<=D$5,IF($B10=D$5,D$3*D$4+D$4,D$3*D$4),0) -> 6125 | G10: 0.06 | H10: 96357.90663 | I10: 70526.44191
B11: =1+B10 -> 2 | C11: =IF($B11<=C$5,IF($B11=C$5,C$3*C$4+C$4,C$3*C$4),0) -> 5625 | D11: 6125 | G11: 0.07 | H11: 87476.61824 | I11: 70526.44191
B12: 3 | C12: 5625 | D12: 6125 | G12: 0.08 | H12: 79671.23812 | I12: 70526.44191
B13: 4 | C13: 5625 | D13: 6125 | G13: 0.09 | H13: 72795.17655 | I13: 70526.44191
B14: 5 | C14: 5625 | D14: 6125 | G14: 0.1 | H14: 66723.40216 | I14: 70526.44191
B15: 6 | C15: 5625 | D15: 6125 | G15: 0.11 | H15: 61349.07603 | I15: 70526.44191
B16: 7 | C16: 5625 | D16: 6125 | G16: 0.12 | H16: 56580.73888 | I16: 70526.44191
B17: 8 | C17: 5625 | D17: 6125 | G17: 0.13 | H17: 52339.95618 | I17: 70526.44191
B18: 9 | C18: 5625 | D18: 6125 | G18: 0.14 | H18: 48559.34312 | I18: 70526.44191
B19: 10 | C19: 5625 | D19: 6125 | G19: 0.15 | H19: 45180.90533 | I19: 70526.44191
B20: 11 | C20: 5625 | D20: 6125 | G20: 0.16 | H20: 42154.64231 | I20: 70526.44191
B21: 12 | C21: 5625 | D21: 6125 | G21: 0.17 | H21: 39437.37024 | I21: 70526.44191
B22: 13 | C22: 5625 | D22: 6125 | G22: 0.18 | H22: 36991.72771 | I22: 70526.44191
B23: 14 | C23: 5625 | D23: 6125 | G23: 0.19 | H23: 34785.33483 | I23: 70526.44191
B24: 15 | C24: 105625 | D24: 106125 | G24: 0.2 | H24: 32790.08077 | I24: 70526.44191
B25: 16 | C25: 0 | D25: 0
B26: 17 | C26: =IF($B26<=C$5,IF($B26=C$5,C$3*C$4+C$4,C$3*C$4),0) -> 0 | D26: 0
B27: 18 | C27: 0 | D27: 0
B28: 19 | C28: 0 | D28: 0
B29: 20 | C29: 0 | D29: 0
B30: 21 | C30: 0 | D30: 0
B31: 22 | C31: 0 | D31: 0
B32: 23 | C32: 0 | D32: 0
B33: 24 | C33: 0 | D33: 0
B34: 25 | C34: 0 | D34: 0
B35: 26 | C35: 0 | D35: 0
B36: 27 | C36: 0 | D36: 0
B37: 28 | C37: 0 | D37: 0
B38: =1+B37 -> 29 | C38: 0 | D38: 0
B39: 30 | C39: 0 | D39: 0
B40: Present Value of Bond | C40: =NPV(C6,C10:C39) -> 66723.40216 | D40: =NPV(D6,D10:D39) -> 70526.44191
B41: Market Price of Bond | C41: =100000-1800-125-350-1600 -> 96125 | D41: =100000-1800-125-350 -> 97725
B42: Yield to Maturity (YTM) | C42: =IRR(C9:C39,C6) -> 0.06024622856 | D42: =IRR(D9:D39,D6) -> 0.06364856321

Sheet LongPV
B1: Interest Rate = | C1: 0.1
B2: End of Period | C2: Cash Flow | D2: Discount Factor | E2: PV Cash Flow
B3: 0 | C3: 0 | D3: =(1+$C$1)^-B3 -> 1 | E3: =C3*D3 -> 0 | F3: Note: Be sure that the cash flow
B4: =1+B3 -> 1 | C4: 0 | D4: =(1+$C$1)^-B4 -> 0.9090909091 | E4: =C4*D4 -> 0 | F4: column countains no "blank"
B5: =1+B4 -> 2 | C5: 0 | D5: 0.826446281 | E5: 0 | F5: cells - use "0" where
B6: 3 | C6: 0 | D6: 0.7513148009 | E6: 0 | F6: appropriate!
B7: 4 | C7: 0 | D7: 0.6830134554 | E7: 0
B8: 5 | C8: 0 | D8: 0.6209213231 | E8: 0
B9: 6 | C9: 0 | D9: 0.5644739301 | E9: 0
B10: 7 | C10: 0 | D10: 0.5131581182 | E10: 0
B11: 8 | C11: 0 | D11: 0.4665073802 | E11: 0
B12: 9 | C12: 0 | D12: 0.4240976184 | E12: 0
B13: 10 | C13: 0 | D13: 0.3855432894 | E13: 0
B14: 11 | C14: 0 | D14: 0.3504938995 | E14: 0
B15: 12 | C15: 0 | D15: 0.3186308177 | E15: 0
B16: 13 | C16: 0 | D16: 0.2896643797 | E16: 0
B17: 14 | C17: 0 | D17: 0.2633312543 | E17: 0
B18: 15 | C18: 0 | D18: 0.2393920494 | E18: 0
B19: 16 | C19: 0 | D19: 0.2176291358 | E19: 0
B20: 17 | C20: 0 | D20: 0.1978446689 | E20: 0
B21: 18 | C21: 0 | D21: 0.1798587899 | E21: 0
B22: 19 | C22: 0 | D22: 0.1635079908 | E22: 0
B23: 20 | C23: 0 | D23: 0.148643628 | E23: 0
B24: 21 | C24: 0 | D24: 0.1351305709 | E24: 0
B25: 22 | C25: 0 | D25: 0.1228459736 | E25: 0
B26: 23 | C26: 0 | D26: 0.1116781578 | E26: 0
B27: 24 | C27: 0 | D27: 0.101525598 | E27: 0
B28: 25 | C28: 0 | D28: 0.09229599818 | E28: 0
B29: 26 | C29: 0 | D29: 0.08390545289 | E29: 0
B30: 27 | C30: 0 | D30: 0.07627768444 | E30: 0
B31: 28 | C31: 0 | D31: 0.06934334949 | E31: 0
B32: 29 | C32: 0 | D32: 0.06303940863 | E32: 0
B33: 30 | C33: 0 | D33: 0.0573085533 | E33: 0
B34: 31 | C34: 0 | D34: 0.05209868482 | E34: 0
B35: 32 | C35: 0 | D35: 0.04736244074 | E35: 0
B36: 33 | C36: 0 | D36: 0.04305676431 | E36: 0
B37: 34 | C37: 0 | D37: 0.03914251301 | E37: 0
B38: 35 | C38: 0 | D38: 0.03558410274 | E38: 0
B39: 36 | C39: 0 | D39: 0.03234918431 | E39: 0
B40: 37 | C40: 0 | D40: 0.02940834937 | E40: 0
B41: 38 | C41: 0 | D41: 0.02673486306 | E41: 0
B42: 39 | C42: 0 | D42: 0.02430442097 | E42: 0
B43: 40 | C43: 0 | D43: 0.02209492815 | E43: 0
B44: 41 | C44: 0 | D44: 0.02008629832 | E44: 0
B45: 42 | C45: 0 | D45: 0.0182602712 | E45: 0
B46: 43 | C46: 0 | D46: 0.01660024655 | E46: 0
B47: 44 | C47: 0 | D47: 0.01509113322 | E47: 0
B48: 45 | C48: 0 | D48: 0.01371921202 | E48: 0
B49: 46 | C49: 0 | D49: 0.01247201093 | E49: 0
B50: 47 | C50: 0 | D50: 0.01133819175 | E50: 0
B51: 48 | C51: 0 | D51: 0.01030744705 | E51: 0
B52: 49 | C52: 0 | D52: 0.009370406407 | E52: 0
B53: 50 | C53: 0 | D53: 0.00851855128 | E53: 0
B54: 51 | C54: 0 | D54: 0.007744137527 | E54: 0
B55: 52 | C55: 0 | D55: 0.007040125024 | E55: 0
B56: 53 | C56: 0 | D56: 0.006400113659 | E56: 0
B57: 54 | C57: 0 | D57: 0.005818285144 | E57: 0
B58: 55 | C58: 0 | D58: 0.005289350131 | E58: 0
B59: 56 | C59: 0 | D59: 0.004808500119 | E59: 0
B60: 57 | C60: 0 | D60: 0.004371363745 | E60: 0
B61: 58 | C61: 0 | D61: 0.003973967041 | E61: 0
B62: 59 | C62: 0 | D62: 0.00361269731 | E62: 0
B63: =1+B62 -> 60 | C63: 0 | D63: 0.003284270281 | E63: =C63*D63 -> 0
E64: =SUM(E3:E63) -> 0
C65: IRR(PVo…FVn) = | D65: =IRR(C3:C63,E70) -> 
C66: NPV(i,FV1…FVn) = | D66: =NPV(C1,C4:C63) -> 0 | E66: =D66+E3 -> 0 | F66: <-- Actual NPV

Sheet LongFV
A1: Future Value: Uneven Cash Flows | H1: Competing Investment
D2: Interest Rate = | E2: 0.12 | I2: Interest Rate = | J2: 0.11
B3: End of Period | C3: Cash Flow (Investment) | D3: Future Value of Investment | E3: Sum of Investment | F3: Sum of Interest | H3: Cash Flow (Investment) | I3: Future Value of Investment | J3: Sum of Investment | K3: Sum of Interest
B4: 0 | C4: 0 | D4: =C4 -> 0 | E4: =SUM(C4:C$4) -> 0 | F4: =D4-E4 -> 0 | H4: 0 | I4: =H4 -> 0 | J4: =SUM(H4:H$4) -> 0 | K4: =I4-J4 -> 0
B5: =1+B4 -> 1 | C5: 2000 | D5: =D4*(1+$E$2)+C5 -> 2000 | E5: =SUM(C$4:C5) -> 2000 | F5: =D5-E5 -> 0 | H5: 2000 | I5: =I4*(1+$J$2)+H5 -> 2000 | J5: =SUM(H$4:H5) -> 2000 | K5: =I5-J5 -> 0
B6: 2 | C6: =C5 -> 2000 | D6: 4240 | E6: =SUM(C$4:C6) -> 4000 | F6: 240 | H6: =H5 -> 2000 | I6: =I5*(1+$J$2)+H6 -> 4220 | J6: =SUM(H$4:H6) -> 4000 | K6: 220
B7: 3 | C7: =C6 -> 2000 | D7: 6748.8 | E7: =SUM(C$4:C7) -> 6000 | F7: 748.8 | H7: =H6 -> 2000 | I7: 6684.2 | J7: =SUM(H$4:H7) -> 6000 | K7: 684.2
B8: 4 | C8: 2000 | D8: 9558.656 | E8: =SUM(C$4:C8) -> 8000 | F8: 1558.656 | H8: 2000 | I8: 9419.462 | J8: =SUM(H$4:H8) -> 8000 | K8: 1419.462
B9: 5 | C9: 2000 | D9: 12705.69472 | E9: =SUM(C$4:C9) -> 10000 | F9: 2705.69472 | H9: 2000 | I9: 12455.60282 | J9: =SUM(H$4:H9) -> 10000 | K9: 2455.60282
B10: 6 | C10: 2000 | D10: 16230.37809 | E10: =SUM(C$4:C10) -> 12000 | F10: 4230.378086 | H10: 2000 | I10: 15825.71913 | J10: =SUM(H$4:H10) -> 12000 | K10: 3825.71913
B11: 7 | C11: 2000 | D11: 20178.02346 | E11: =SUM(C$4:C11) -> 14000 | F11: 6178.023457 | H11: 2000 | I11: 19566.54823 | J11: =SUM(H$4:H11) -> 14000 | K11: 5566.548235
B12: 8 | C12: 0 | D12: 22599.38627 | E12: =SUM(C$4:C12) -> 14000 | F12: 8599.386272 | H12: 0 | I12: 21718.86854 | J12: =SUM(H$4:H12) -> 14000 | K12: 7718.86854
B13: 9 | C13: 0 | D13: 25311.31262 | E13: =SUM(C$4:C13) -> 14000 | F13: 11311.31262 | H13: 0 | I13: 24107.94408 | J13: =SUM(H$4:H13) -> 14000 | K13: 10107.94408
B14: =1+B13 -> 10 | C14: =C13 -> 0 | D14: 28348.67014 | E14: =SUM(C$4:C14) -> 14000 | F14: =D14-E14 -> 14348.67014 | H14: 0 | I14: 26759.81793 | J14: =SUM(H$4:H14) -> 14000 | K14: 12759.81793
B15: 11 | C15: 0 | D15: 31750.51056 | E15: =SUM(C$4:C15) -> 14000 | F15: 17750.51056 | H15: 0 | I15: 29703.3979 | J15: =SUM(H$4:H15) -> 14000 | K15: 15703.3979
B16: 12 | C16: 0 | D16: 35560.57182 | E16: =SUM(C$4:C16) -> 14000 | F16: 21560.57182 | H16: 0 | I16: 32970.77167 | J16: =SUM(H$4:H16) -> 14000 | K16: 18970.77167
B17: 13 | C17: 0 | D17: 39827.84044 | E17: =SUM(C$4:C17) -> 14000 | F17: 25827.84044 | H17: 0 | I17: 36597.55655 | J17: =SUM(H$4:H17) -> 14000 | K17: 22597.55655
B18: 14 | C18: 0 | D18: 44607.18129 | E18: =SUM(C$4:C18) -> 14000 | F18: 30607.18129 | H18: 0 | I18: 40623.28777 | J18: =SUM(H$4:H18) -> 14000 | K18: 26623.28777
B19: 15 | C19: 0 | D19: 49960.04305 | E19: =SUM(C$4:C19) -> 14000 | F19: 35960.04305 | H19: 0 | I19: 45091.84943 | J19: =SUM(H$4:H19) -> 14000 | K19: 31091.84943
B20: 16 | C20: 0 | D20: 55955.24822 | E20: =SUM(C$4:C20) -> 14000 | F20: 41955.24822 | H20: 0 | I20: 50051.95287 | J20: =SUM(H$4:H20) -> 14000 | K20: 36051.95287
B21: 17 | C21: 0 | D21: 62669.878 | E21: =SUM(C$4:C21) -> 14000 | F21: 48669.878 | H21: 0 | I21: 55557.66768 | J21: =SUM(H$4:H21) -> 14000 | K21: 41557.66768
B22: 18 | C22: 0 | D22: 70190.26336 | E22: =SUM(C$4:C22) -> 14000 | F22: 56190.26336 | H22: 0 | I22: 61669.01113 | J22: =SUM(H$4:H22) -> 14000 | K22: 47669.01113
B23: 19 | C23: 0 | D23: 78613.09496 | E23: =SUM(C$4:C23) -> 14000 | F23: 64613.09496 | H23: 0 | I23: 68452.60235 | J23: =SUM(H$4:H23) -> 14000 | K23: 54452.60235
B24: 20 | C24: 0 | D24: 88046.66636 | E24: =SUM(C$4:C24) -> 14000 | F24: 74046.66636 | H24: 0 | I24: 75982.38861 | J24: =SUM(H$4:H24) -> 14000 | K24: 61982.38861
B25: 21 | C25: 0 | D25: 98612.26632 | E25: =SUM(C$4:C25) -> 14000 | F25: 84612.26632 | H25: 0 | I25: 84340.45136 | J25: =SUM(H$4:H25) -> 14000 | K25: 70340.45136
B26: 22 | C26: 0 | D26: 110445.7383 | E26: =SUM(C$4:C26) -> 14000 | F26: 96445.73828 | H26: 0 | I26: 93617.90101 | J26: =SUM(H$4:H26) -> 14000 | K26: 79617.90101
B27: 23 | C27: 0 | D27: 123699.2269 | E27: =SUM(C$4:C27) -> 14000 | F27: 109699.2269 | H27: 0 | I27: 103915.8701 | J27: =SUM(H$4:H27) -> 14000 | K27: 89915.87012
B28: 24 | C28: 0 | D28: 138543.1341 | E28: =SUM(C$4:C28) -> 14000 | F28: 124543.1341 | H28: 0 | I28: 115346.6158 | J28: =SUM(H$4:H28) -> 14000 | K28: 101346.6158
B29: 25 | C29: 0 | D29: 155168.3102 | E29: =SUM(C$4:C29) -> 14000 | F29: 141168.3102 | H29: 0 | I29: 128034.7436 | J29: =SUM(H$4:H29) -> 14000 | K29: 114034.7436
B30: 26 | C30: 0 | D30: 173788.5074 | E30: =SUM(C$4:C30) -> 14000 | F30: 159788.5074 | H30: 0 | I30: 142118.5654 | J30: =SUM(H$4:H30) -> 14000 | K30: 128118.5654
B31: 27 | C31: 0 | D31: 194643.1283 | E31: =SUM(C$4:C31) -> 14000 | F31: 180643.1283 | H31: 0 | I31: 157751.6076 | J31: =SUM(H$4:H31) -> 14000 | K31: 143751.6076
B32: 28 | C32: 0 | D32: 218000.3037 | E32: =SUM(C$4:C32) -> 14000 | F32: 204000.3037 | H32: 0 | I32: 175104.2844 | J32: =SUM(H$4:H32) -> 14000 | K32: 161104.2844
B33: 29 | C33: 0 | D33: 244160.3401 | E33: =SUM(C$4:C33) -> 14000 | F33: 230160.3401 | H33: 0 | I33: 194365.7557 | J33: =SUM(H$4:H33) -> 14000 | K33: 180365.7557
B34: 30 | C34: 0 | D34: 273459.581 | E34: =SUM(C$4:C34) -> 14000 | F34: 259459.581 | H34: 0 | I34: 215745.9888 | J34: =SUM(H$4:H34) -> 14000 | K34: 201745.9888
B35: 31 | C35: 0 | D35: 306274.7307 | E35: =SUM(C$4:C35) -> 14000 | F35: 292274.7307 | H35: 0 | I35: 239478.0476 | J35: =SUM(H$4:H35) -> 14000 | K35: 225478.0476
B36: 32 | C36: 0 | D36: 343027.6984 | E36: =SUM(C$4:C36) -> 14000 | F36: 329027.6984 | H36: 0 | I36: 265820.6328 | J36: =SUM(H$4:H36) -> 14000 | K36: 251820.6328
B37: 33 | C37: 0 | D37: =D36*(1+$E$2)+C37 -> 384191.0222 | E37: =SUM(C$4:C37) -> 14000 | F37: 370191.0222 | H37: 0 | I37: 295060.9024 | J37: =SUM(H$4:H37) -> 14000 | K37: 281060.9024
B38: 34 | C38: 0 | D38: 430293.9448 | E38: =SUM(C$4:C38) -> 14000 | F38: 416293.9448 | H38: 0 | I38: 327517.6017 | J38: =SUM(H$4:H38) -> 14000 | K38: 313517.6017
B39: 35 | C39: 0 | D39: 481929.2182 | E39: =SUM(C$4:C39) -> 14000 | F39: 467929.2182 | H39: 0 | I39: 363544.5378 | J39: =SUM(H$4:H39) -> 14000 | K39: 349544.5378
B40: 36 | C40: 0 | D40: 539760.7244 | E40: =SUM(C$4:C40) -> 14000 | F40: 525760.7244 | H40: 0 | I40: 403534.437 | J40: =SUM(H$4:H40) -> 14000 | K40: 389534.437
B41: 37 | C41: 0 | D41: 604532.0113 | E41: =SUM(C$4:C41) -> 14000 | F41: 590532.0113 | H41: 0 | I41: 447923.2251 | J41: =SUM(H$4:H41) -> 14000 | K41: 433923.2251
B42: 38 | C42: 0 | D42: 677075.8527 | E42: =SUM(C$4:C42) -> 14000 | F42: 663075.8527 | H42: 0 | I42: 497194.7798 | J42: =SUM(H$4:H42) -> 14000 | K42: 483194.7798
B43: 39 | C43: 0 | D43: 758324.955 | E43: =SUM(C$4:C43) -> 14000 | F43: 744324.955 | H43: 0 | I43: 551886.2056 | J43: =SUM(H$4:H43) -> 14000 | K43: 537886.2056
B44: 40 | C44: 0 | D44: 849323.9496 | E44: =SUM(C$4:C44) -> 14000 | F44: 835323.9496 | H44: 0 | I44: 612593.6882 | J44: =SUM(H$4:H44) -> 14000 | K44: 598593.6882
B45: 41 | C45: 0 | D45: 951242.8235 | E45: =SUM(C$4:C45) -> 14000 | F45: 937242.8235 | H45: 0 | I45: 679978.9939 | J45: =SUM(H$4:H45) -> 14000 | K45: 665978.9939
B46: 42 | C46: 0 | D46: 1065391.962 | E46: =SUM(C$4:C46) -> 14000 | F46: 1051391.962 | H46: 0 | I46: 754776.6833 | J46: =SUM(H$4:H46) -> 14000 | K46: 740776.6833
B47: 43 | C47: 0 | D47: 1193238.998 | E47: =SUM(C$4:C47) -> 14000 | F47: 1179238.998 | H47: 0 | I47: 837802.1184 | J47: =SUM(H$4:H47) -> 14000 | K47: 823802.1184
B48: 44 | C48: 0 | D48: 1336427.678 | E48: =SUM(C$4:C48) -> 14000 | F48: 1322427.678 | H48: 0 | I48: 929960.3515 | J48: =SUM(H$4:H48) -> 14000 | K48: 915960.3515
B49: 45 | C49: 0 | D49: 1496798.999 | E49: =SUM(C$4:C49) -> 14000 | F49: 1482798.999 | H49: 0 | I49: 1032255.99 | J49: =SUM(H$4:H49) -> 14000 | K49: 1018255.99
B50: 46 | C50: 0 | D50: 1676414.879 | E50: =SUM(C$4:C50) -> 14000 | F50: 1662414.879 | H50: 0 | I50: 1145804.149 | J50: =SUM(H$4:H50) -> 14000 | K50: 1131804.149
B51: 47 | C51: 0 | D51: 1877584.664 | E51: =SUM(C$4:C51) -> 14000 | F51: 1863584.664 | H51: 0 | I51: 1271842.605 | J51: =SUM(H$4:H51) -> 14000 | K51: 1257842.605
B52: 48 | C52: 0 | D52: 2102894.824 | E52: =SUM(C$4:C52) -> 14000 | F52: 2088894.824 | H52: 0 | I52: 1411745.292 | J52: =SUM(H$4:H52) -> 14000 | K52: 1397745.292
B53: 49 | C53: 0 | D53: 2355242.203 | E53: =SUM(C$4:C53) -> 14000 | F53: 2341242.203 | H53: 0 | I53: 1567037.274 | J53: =SUM(H$4:H53) -> 14000 | K53: 1553037.274
B54: 50 | C54: 0 | D54: 2637871.267 | E54: =SUM(C$4:C54) -> 14000 | F54: 2623871.267 | H54: 0 | I54: 1739411.374 | J54: =SUM(H$4:H54) -> 14000 | K54: 1725411.374
B55: 51 | C55: 0 | D55: 2954415.819 | E55: =SUM(C$4:C55) -> 14000 | F55: 2940415.819 | H55: 0 | I55: 1930746.625 | J55: =SUM(H$4:H55) -> 14000 | K55: 1916746.625
B56: 52 | C56: 0 | D56: 3308945.718 | E56: =SUM(C$4:C56) -> 14000 | F56: 3294945.718 | H56: 0 | I56: 2143128.754 | J56: =SUM(H$4:H56) -> 14000 | K56: 2129128.754
B57: 53 | C57: 0 | D57: 3706019.204 | E57: =SUM(C$4:C57) -> 14000 | F57: 3692019.204 | H57: 0 | I57: 2378872.917 | J57: =SUM(H$4:H57) -> 14000 | K57: 2364872.917
B58: 54 | C58: 0 | D58: 4150741.508 | E58: =SUM(C$4:C58) -> 14000 | F58: 4136741.508 | H58: 0 | I58: 2640548.938 | J58: =SUM(H$4:H58) -> 14000 | K58: 2626548.938
B59: 55 | C59: 0 | D59: 4648830.489 | E59: =SUM(C$4:C59) -> 14000 | F59: 4634830.489 | H59: 0 | I59: 2931009.321 | J59: =SUM(H$4:H59) -> 14000 | K59: 2917009.321
B60: 56 | C60: 0 | D60: 5206690.148 | E60: =SUM(C$4:C60) -> 14000 | F60: 5192690.148 | H60: 0 | I60: 3253420.347 | J60: =SUM(H$4:H60) -> 14000 | K60: 3239420.347
B61: 57 | C61: 0 | D61: 5831492.965 | E61: =SUM(C$4:C61) -> 14000 | F61: 5817492.965 | H61: 0 | I61: 3611296.585 | J61: =SUM(H$4:H61) -> 14000 | K61: 3597296.585
B62: 58 | C62: 0 | D62: 6531272.121 | E62: =SUM(C$4:C62) -> 14000 | F62: 6517272.121 | H62: 0 | I62: 4008539.209 | J62: =SUM(H$4:H62) -> 14000 | K62: 3994539.209
B63: 59 | C63: 0 | D63: 7315024.776 | E63: =SUM(C$4:C63) -> 14000 | F63: 7301024.776 | H63: 0 | I63: 4449478.522 | J63: =SUM(H$4:H63) -> 14000 | K63: 4435478.522
B64: =1+B63 -> 60 | C64: =C63 -> 0 | D64: 8192827.749 | E64: =SUM(C$4:C64) -> 14000 | F64: =D64-E64 -> 8178827.749 | H64: 0 | I64: 4938921.16 | J64: =SUM(H$4:H64) -> 14000 | K64: 4924921.16
B65: Sum of CFs | C65: =SUM(C4:C64) -> 14000 | D65: =D64 -> 8192827.749 | E65: Future Value | H65: =SUM(H4:H64) -> 14000 | I65: =I64 -> 4938921.16 | J65: Future Value
D66: =C65 -> 14000 | E66: Total Investment | I66: =H65 -> 14000 | J66: Total Investment
D67: =D65-D66 -> 8178827.749 | E67: Total Interest | I67: =I65-I66 -> 4924921.16 | J67: Total Interest

Sheet CALC
A1: Financial Math Calculator | F1: =IF(F3,"PMT @ Beginning", "PMT @ End") -> PMT @ Beginning | G1: of Period
A2: N | B2: IY | C2: PV | D2: PMT | E2: FV | F2: Type
A3: 10 | B3: 0.1 | C3: -40000 | D3: 5625 | E3: 5000 | F3: 1 | G3: <-- Inputs
D4: Result | E4: Excel function
B5: =getformula(D5) -> =FV(IY,N,PMT,PV,Type) --> | D5: =FV(IY,N,PMT,PV,Type) -> 5136.883685 | E5: FV
B6: =getformula(D6) -> =NPER(IY,PMT,PV,FV,Type) --> | D6: =NPER(IY,PMT,PV,FV,Type) -> 10.02528216 | E6: NPER
B7: =getformula(D7) -> =PMT(IY,N,PV,FV,Type) --> | D7: =PMT(IY,N,PV,FV,Type) -> 5632.808019 | E7: PMT
B8: =getformula(D8) -> =PV(IY,N,PMT,FV,Type) --> | D8: =PV(IY,N,PMT,FV,Type) -> -39947.22541 | E8: PV
B9: =getformula(D9) -> =RATE(N,PMT,PV,FV,Type) --> | D9: =RATE(N,PMT,PV,FV,Type) -> 0.09963967669 | E9: RATE

Sheet FVIF
A1: FVIF TABLE
B2: 0.02 | C2: 0.04 | D2: 0.06 | E2: 0.08 | F2: 0.1
A3: 1 | B3: =(1+B$2)^$A3 -> 1.02 | C3: 1.04 | D3: 1.06 | E3: 1.08 | F3: 1.1
A4: 2 | B4: 1.0404 | C4: 1.0816 | D4: 1.1236 | E4: 1.1664 | F4: 1.21
A5: 3 | B5: 1.061208 | C5: 1.124864 | D5: 1.191016 | E5: 1.259712 | F5: 1.331
A6: 4 | B6: 1.08243216 | C6: 1.16985856 | D6: 1.26247696 | E6: 1.36048896 | F6: 1.4641
A7: 5 | B7: 1.104080803 | C7: 1.216652902 | D7: 1.338225578 | E7: 1.469328077 | F7: 1.61051
C10: Rate = | D10: 0.1
C11: N = | D11: 5
C12: FVIF = | D12: =(1+D10)^D11 -> 1.61051
A13: data table: FVIF
A14: =D12 -> 1.61051 | B14: 0.02 | C14: 0.04 | D14: 0.06 | E14: 0.08 | F14: 0.1
A15: 1 | B15: 1.02 | C15: 1.04 | D15: 1.06 | E15: 1.08 | F15: 1.1
A16: 2 | B16: 1.0404 | C16: 1.0816 | D16: 1.1236 | E16: 1.1664 | F16: 1.21
A17: 3 | B17: 1.061208 | C17: 1.124864 | D17: 1.191016 | E17: 1.259712 | F17: 1.331
A18: 4 | B18: 1.08243216 | C18: 1.16985856 | D18: 1.26247696 | E18: 1.36048896 | F18: 1.4641
A19: 5 | B19: 1.104080803 | C19: 1.216652902 | D19: 1.338225578 | E19: 1.469328077 | F19: 1.61051
